Cogmind - Beta 9.2 @@@ ROGUE MODE // 2019.11.12 @ 02:35:07 Player: Flamebroken Result: Destroyed by G-47 Trooper with Particle Gun Performance ------------- Evolutions (2) 1000 Regions Visited (3) 600 Robots Destroyed (50) 250 Value Destroyed (1390) 1390 Prototype IDs (1) 20 Alien Tech Used (0) 0 Bonus (44) 44 TOTAL SCORE: 3304 Bonus ------- High Alert Combat Kills 44 Cogmind --------- Core Integrity 0/550 Matter 290/300 Energy 48/100 System Corruption 1% Temperature Cool (9) Movement Core (50) Location -8/Materials Parts ------- > --- POWER (2) -------- (None) > --- PROPULSION (2) --- (None) > --- UTILITY (5) ------ Advanced Visual Processing Unit > --- WEAPON (2) ------- Welding Torch > --- INVENTORY (4) ---- Thermal Generator Heat Sink Maneuvering Thrusters Tractor Beam Peak State ------------ > --- POWER ------------ Light Deuterium Engine Nuclear Core > --- PROPULSION ------- Armored Treads Armored Treads > --- UTILITY ---------- Compact Battery Advanced Visual Processing Unit Advanced Sensor Array Improved Targeting Computer Reactive Plating > --- WEAPON ----------- Shock Bomb Launcher Shock Bomb Launcher > --- INVENTORY -------- Thermal Generator Heat Sink Maneuvering Thrusters Tractor Beam [Rating: 32] Favorites ----------- Power Ion Engine Engine Ion Engine Power Core Nuclear Core Propulsion Armored Wheel Treads Armored Treads Leg Aluminum Leg Wheel Armored Wheel Hover Unit Improved Hover Unit Flight Unit Flight Unit Utility Visual Processing Unit Device Improved Sensor Array Storage Large Storage Unit Processor Visual Processing Unit Protection Reactive Plating Weapon Shock Bomb Launcher Energy Gun Beam Rifle Energy Cannon Heavy Particle Cannon Ballistic Gun Light Assault Rifle Launcher Shock Bomb Launcher Special Weapon Welding Torch Impact Weapon Hammer Build | -11 -10 -9 -8 ------- Run | Scr Mat Mat Mat Slots Evolved 4 | . . 2 2 Power 1 | . . . 1 Propulsion . | . . . . Utility 3 | . . 2 1 Weapon . | . . . . Parts Attached 67 | 6 15 18 28 Power 8 | 1 1 2 4 Engine 7 | 1 1 2 3 Core 1 | . . . 1 Reactor . | . . . . Propulsion 22 | 3 5 6 8 Treads 7 | 1 . 2 4 Leg 4 | 2 2 . . Wheel 4 | . 2 2 . Hover 2 | . . . 2 Flight 5 | . 1 2 2 Utility 15 | . 5 4 6 Device 5 | . 1 3 1 Storage 4 | . 3 . 1 Processor 4 | . 1 . 3 Hackware . | . . . . Protection 2 | . . 1 1 Artifact . | . . . . Weapon 22 | 2 4 6 10 Energy Gun 9 | . 3 3 3 Energy Cannon 1 | . . . 1 Ballistic Gun 6 | 2 1 3 . Ballistic Cannon . | . . . . Launcher 4 | . . . 4 Special Weapon 1 | . . . 1 Impact Weapon 1 | . . . 1 Slashing Weapon . | . . . . Piercing Weapon . | . . . . Special Melee Weapon . | . . . . Unidentified Prototypes 1 | . . . 1 Parts Lost 42 | . 5 20 17 Power 7 | . 1 3 3 Propulsion 11 | . 1 6 4 Utility 7 | . . 3 4 Weapon 17 | . 3 8 6 Highest Loss Streak 13 | . 5 6 13 Average Slot Usage (%) 81 | . 75 83 82 Engine 10 | . 11 7 11 Treads 4 | . . 4 6 Leg 1 | . 7 . . Wheel 6 | . 8 11 . Hover 2 | . . . 6 Flight 2 | . 4 2 1 Device 8 | . . 18 2 Storage 9 | . 11 9 8 Processor 14 | . 4 11 22 Protection 2 | . . . 7 Energy Gun 6 | . 11 11 . Ballistic Gun 5 | . 14 6 . Launcher 5 | . . . 13 Naked Turns . | . . . . Heaviest Build 36 | 5 27 29 36 Greatest Support 40 | 20 24 40 40 Greatest Overweight (x) 4 | . 1 4 4 Average Overweight (x) . | . . . 1 Largest Inventory Capacity 10 | 4 10 10 4 Average Capacity 6 | 4 5 9 4 Most Carried 7 | 2 7 7 4 Average Carried 3 | . 3 4 2 Final Capacity 10 | 4 10 4 4 Final Carried 7 | 2 7 3 4 Class Distribution -------------------- 65% | Mutant 19% | Skirmisher 14% | Scavenger-Mutant Dominant Class ---------------- Mutant | -10/Materials Skirmisher | -9/Materials Mutant | -8/Materials Resources | -11 -10 -9 -8 ----------- Run | Scr Mat Mat Mat Matter Collected 1173 | 179 38 531 425 Remotely 248 | . . 248 . Salvage Created 1669 | . 118 576 975 Parts 98 | . 10 34 54 Haulers Intercepted 1 | . . . 1 Recyclers Shooed 3 | . . 3 . Parts Field Recycled . | . . . . Retrieved Matter . | . . . . Parts Self-Destructed . | . . . . Prevented . | . . . . Kills | -11 -10 -9 -8 ------- Run | Scr Mat Mat Mat Combat Hostiles Destroyed 37 | . 7 16 14 Guns 23 | . 7 16 . AOE 10 | . . . 10 Classes Destroyed 12 | . 3 3 6 Worker 2 | . 1 . 1 Builder 3 | . . . 3 Hauler 1 | . . . 1 Recycler 1 | . . 1 . Operator 2 | . . . 2 Watcher 4 | . . 1 3 Swarmer 14 | . 6 7 1 Grunt 12 | . 1 6 5 Brawler 2 | . . . 2 Duelist 1 | . . . 1 Sentry 7 | . . 3 4 Hunter 1 | . . . 1 Best Kill Streak 12 | . 3 5 12 Combat Bots Only 7 | . 3 4 7 Max Kills in Single Turn 4 | . 1 1 4 Gunslinging . | . . . . Exploded 2 | . . . 2 Melee . | . . . . Uniques/NPCs Destroyed . | . . . . Combat | -11 -10 -9 -8 -------- Run | Scr Mat Mat Mat Damage Taken 4500 | . 665 1753 2082 Core 1115 | . 192 373 550 Absorbed by Shields . | . . . . Core Remaining (%) 43 | 100 23 6 . Volleys Fired 164 | . 39 80 45 Largest 2 | . 2 2 2 Hottest 112 | . 112 112 72 Shots Fired 245 | . 60 117 68 Gun 187 | . 60 117 10 Cannon . | . . . . Launcher 56 | . . . 56 Special 2 | . . . 2 Kinetic 100 | . 39 61 . Thermal 72 | . 16 44 12 Explosive . | . . . . Electromagnetic 73 | . 5 12 56 Robot Hit Streak 11 | . 5 11 10 Robot Miss Streak 5 | . 4 5 4 Penetration Max . | . . . . Secondary Targets 4 | . . 4 . Max Gunslinging Chain 1 | . . 1 . Shots Hit Robots 147 | . 31 68 48 Core Hits 78 | . 11 27 40 Critical Hits . | . . . . Critical Kills . | . . . . Critical Parts Destroyed . | . . . . Melee Attacks . | . . . . Impact . | . . . . Slashing . | . . . . Piercing . | . . . . Sneak Attacks . | . . . . Combat Hostiles . | . . . . Follow-up Attacks . | . . . . Damage Inflicted 3576 | . 541 991 2044 Guns 1414 | . 349 973 92 Cannons . | . . . . Explosions 2131 | . 192 . 1939 Melee . | . . . . Ramming 27 | . . 18 9 Kinetic 613 | . 163 450 . Thermal 1012 | . 330 366 316 Explosive 268 | . . . 268 Electromagnetic 1656 | . 48 157 1451 Impact . | . . . . Slashing . | . . . . Piercing . | . . . . Highest Corruption 3 | . 1 3 1 Average Corruption 1 | . 1 1 1 Corruption Purged . | . . . . Effects 5 | . . 3 2 Message Errors 1 | . . 1 . Energy Discharges 1 | . . 1 . Data Loss (minor) 2 | . . . 2 Targeting Errors 1 | . . 1 . Overload Shots . | . . . . Overflow Damage 176 | . 106 . 70 Projectiles . | . . . . Explosions 176 | . 106 . 70 Melee . | . . . . Knockbacks . | . . . . Impact . | . . . . Kinetic . | . . . . Secondary . | . . . . Self-Inflicted Damage 231 | . . 8 223 Shots 10 | . . . 10 Rammed 16 | . . 4 12 Targets Rammed 16 | . . 4 12 Kicked . | . . . . Crushed . | . . . . Highest Temperature 408 | . 408 223 300 Average Temperature 110 | . 144 82 120 Received Heat Transfer 1203 | . 54 465 684 Effects 4 | . 1 . 3 Shutdowns 1 | . 1 . . Interference 3 | . . . 3 Siege Activations . | . . . . Robots Corrupted 4 | . . . 4 Combat Hostiles 4 | . . . 4 Parts Fried 7 | . . . 7 Impact Corruptions . | . . . . Robots Melted . | . . . . Combat Hostiles . | . . . . Parts Melted 5 | . 1 3 1 Heat Transferred 1882 | . 483 925 474 Parts Sabotaged . | . . . . Parts Stolen . | . . . . Parts Stripped . | . . . . Power Chain Reactions 6 | . 1 . 5 Missiles Intercepted . | . . . . Alert | -11 -10 -9 -8 ------- Run | Scr Mat Mat Mat Peak Influence 556 | . 200 236 556 Average Influence 154 | . 75 141 226 Maximum Alert Level 2 | . 1 1 2 Low Security (%) 76 | 100 95 72 67 Level 1 17 | . 4 27 17 Level 2 5 | . . . 15 Level 3 . | . . . . Level 4 . | . . . . Level 5 . | . . . . High Security . | . . . . Max Security . | . . . . Squads Dispatched 10 | . 2 4 4 Investigation 3 | . 1 2 . Extermination . | . . . . Reinforcement 5 | . 1 2 2 Assault . | . . . . Garrison 2 | . . . 2 Intercept . | . . . . Construction Impeded 1 | . . . 1 Haulers Reinforced . | . . . . Stealth | -11 -10 -9 -8 --------- Run | Scr Mat Mat Mat Distress Signals 3 | . . 1 2 Communications Jammed . | . . . . Distress Signals . | . . . . Times Spotted 66 | . 9 28 29 Peak Tracking Total 7 | . 3 7 6 Tactical Retreats 1 | . . . 1 Traps | -11 -10 -9 -8 ------- Run | Scr Mat Mat Mat Traps Triggered 3 | . 2 1 . Indirectly . | . . . . Trap Hack Attempts . | . . . . Triggered . | . . . . Disarmed . | . . . . Reprogrammed . | . . . . Reused . | . . . . Traps Extracted . | . . . . Installed . | . . . . Triggered . | . . . . Machines | -11 -10 -9 -8 ---------- Run | Scr Mat Mat Mat Machines Disabled 14 | . 3 1 10 Max in Single Turn 4 | . 3 1 4 Machines Sabotaged . | . . . . Garrisons Compromised . | . . . . Overloaded Fab Kills . | . . . . Fab Network Shutdowns . | . . . . Hacking | -11 -10 -9 -8 --------- Run | Scr Mat Mat Mat Machines Accessed 6 | . 3 2 1 Terminals 6 | . 3 2 1 Fabricators . | . . . . Repair Stations . | . . . . Recycling Units . | . . . . Scanalyzers . | . . . . Garrison Access . | . . . . Total Hacks 13 | . 4 8 1 Successful 7 | . 3 3 1 Failed 5 | . 1 4 . Catastrophic 1 | . . 1 . Database Lockouts 1 | . . 1 . Manual . | . . . . Terminals 13 | . 4 8 1 Fabricators . | . . . . Repair Stations . | . . . . Recycling Units . | . . . . Scanalyzers . | . . . . Garrison Access . | . . . . Terminal Hacks 7 | . 3 3 1 Record 3 | . . 3 . Robot Analysis 2 | . 2 . . Alert Level 2 | . 1 . 1 Fabricator Hacks . | . . . . Repair Station Hacks . | . . . . Recycling Unit Hacks . | . . . . Scanalyzer . | . . . . Garrison Access Hacks . | . . . . Unauthorized Hacks . | . . . . Terminals . | . . . . Fabricators . | . . . . Repair Stations . | . . . . Recycling Units . | . . . . Scanalyzers . | . . . . Garrison Access . | . . . . Data Cores Recovered . | . . . . Used . | . . . . Hacking Detections 3 | . 1 2 . Full Trace Events 1 | . . 1 . Feedback Events . | . . . . Feedback Blocked . | . . . . Robot Schematics Acquired . | . . . . Robots Built . | . . . . Matter . | . . . . Time . | . . . . Total Robot Build Rating . | . . . . Part Schematics Acquired . | . . . . Parts Built . | . . . . Matter . | . . . . Time . | . . . . Total Part Build Rating . | . . . . Parts Repaired . | . . . . Time . | . . . . Parts Recycled . | . . . . Recycled Matter . | . . . . Retrieved Matter . | . . . . Retrieved Components . | . . . . Parts Scanalyzed . | . . . . Part Schematics Acquired . | . . . . Parts Damaged . | . . . . Bothacking | -11 -10 -9 -8 ------------ Run | Scr Mat Mat Mat Used RIF Installer . | . . . . Robots Hacked . | . . . . Non-combat . | . . . . Combat . | . . . . Robot Hacks Applied . | . . . . Relay Couplers Released . | . . . . Robots Rewired . | . . . . Allies Hacked . | . . . . Hacks Repelled . | . . . . Allies | -11 -10 -9 -8 -------- Run | Scr Mat Mat Mat Total Allies . | . . . . Largest Group . | . . . . Highest-Rated Group . | . . . . Highest-Rated Ally . | . . . . Total Orders . | . . . . Ally Attacks . | . . . . Total Damage . | . . . . Kills . | . . . . Allies Corrupted . | . . . . Allies Melted . | . . . . Intel | -11 -10 -9 -8 ------- Run | Scr Mat Mat Mat Robot Analysis Total 2 | . 2 . . Derelict Logs Recovered . | . . . . Drone Launches . | . . . . Drone Recoveries . | . . . . Exploration | -11 -10 -9 -8 ------------- Run | Scr Mat Mat Mat Turns Passed 1869 | 64 384 717 704 Spaces Moved 1033 | 55 238 406 334 Core 73 | 19 4 11 39 Treads 204 | 2 . 82 120 Legs 114 | 34 80 . . Wheels 297 | . 94 203 . Hover 131 | . . . 131 Flight 214 | . 60 110 44 Fastest Speed 37 | 50 50 37 40 Average Speed 117 | 97 109 98 149 Slowest Speed 360 | 160 120 360 300 Overloaded Moves . | . . . . Propulsion Burnouts . | . . . . Robots Hopped . | . . . . Cave-ins Triggered . | . . . . Exploration Rate (%) 30 | 3 51 33 34 Regions Visited 3 Branch Regions . Pre-discovered Areas . | . . . . Known Exits Taken . | . . . . Unknown Exits Taken 3 | 1 1 1 . Scrap Searched . | . . . . Spaces Dug . | . . . . Terrain Destroyed 82 | . 15 . 67 Melee . | . . . . Projectile . | . . . . AOE 82 | . 15 . 67 Actions | -11 -10 -9 -8 --------- Run | Scr Mat Mat Mat Total 1438 | 63 307 610 458 Wait 117 | . . 92 25 Move 1030 | 54 237 405 334 Hop . | . . . . Pick Up 20 | 2 8 6 4 Fast Attach 50 | 6 10 9 25 Attach 17 | . 5 9 3 Detach 2 | . 2 . . Swap . | . . . . Drop 22 | 1 6 5 10 Fire 164 | . 39 80 45 Melee . | . . . . Ram 6 | . . 4 2 Kick . | . . . . Crush 10 | . . . 10 Escape Stasis . | . . . . Rewire . | . . . . Trap . | . . . . Miscellaneous . | . . . . Route ------- -11/Scrapyard -10/Materials -9/Materials -8/Materials History --------- Turn | Location | Event 18 | -11/Scrapyard | Discovered new exit (range 16) 65 | -11/Scrapyard | Entered Materials 258 | -10/Materials | Core integrity fell below 50% 284 | -10/Materials | Lost 5 parts (1p1n3w) 358 | -10/Materials | Build established: Mutant 405 | -10/Materials | Discovered new exit (range 17) 449 | -10/Materials | Entered another Materials area 449 | -9/Materials | Evolved 2 slots: Utility x2 514 | -9/Materials | Central database locked down 899 | -9/Materials | Lost 3 parts (1p1n1w) 1019 | -9/Materials | Core integrity fell below 50% 1055 | -9/Materials | Lost 6 parts (1p1n2u2w) 1055 | -9/Materials | Core integrity fell below 20% 1161 | -9/Materials | Discovered new exit (range 12) 1166 | -9/Materials | Entered another Materials area 1166 | -8/Materials | Evolved 2 slots: Power x1, Utility x1 1192 | -8/Materials | Lost 6 parts (1p2n1u2w) 1753 | -8/Materials | Garrison activated, responded to threat 1811 | -8/Materials | Destroyed 7 combat bots 1850 | -8/Materials | Core integrity fell below 50% 1864 | -8/Materials | Core integrity fell below 20% 1870 | -8/Materials | Destroyed by G-47 Trooper with Particle Gun Last Messages --------------- 01860_ U-05 Engineer lays Concrete. 01861_ Slammed into S-10 Pest. 01861_ Destabilizing: Core damaged (-5). 01861_ U-05 Engineer lays Concrete. 01863_ K-01 Serf collects debris. 01863_ U-05 Engineer lays Concrete. 01864_ Acquired Flight Unit. 01864_ U-05 Engineer lays Concrete. 01864_ Flight Unit destroyed. 01864_ K-01 Serf collects debris. 01865_ U-05 Engineer lays Concrete. 01865_ Acquired 15 matter. 01866_ U-05 Engineer lays Concrete. 01866_ Acquired Welding Torch. 01866_ K-01 Serf collects debris. 01867_ System corrupted: Component data lost. 01867_ U-05 Engineer lays Concrete. 01868_ K-01 Serf collects debris. 01869_ S-10 Pest destroyed. 01869_ U-05 Engineer lays Concrete. Map ----- +----------------------------------------------------+ | | | | | | | | | | | | | | | ?????????????????????????????????????????????????? | | ?????????????????????????????????????????????????? | | ?????????????????????????????????????????????????? | | ?????????????????????????????????????????????????? | | ?????????????????????????????????????????????????? | | ?????????????????????????????????????????????????? | | ?????????????????????????????????????????????????? | | ?????????????????????????????????? ??????????????? | | ?????????????????????????????????? #?????????????? | | ??????????????????####???????????? #?????????????? | | ????????????#####?#"""???????????? #?????????????? | | ???????????? ##"T"######+##### #?????????????? | | ???????????? #?????????????? | | ????????????? * =k +?????????????? | | ?????????????? % #?????????????? | | ??????????????? """ #?????????????? | | ?????????????# """ ! u #?????????????? | | ?????????????# """ %* #?????????????? | | ?????????????# @ = #??? ????????? | | ?????????????# % s%= #??"" "???????? | | ?????????????# [ g Y #?"G" ""??????? | | ?????????????# = # " " """?????? | | ?????????????########; % * == Y/ #???? | | ?????????????????# # %=k! u # [ #???? | | ?????????????????# ! "" # !%= [ #?? #???? | | ?????????????????# T" /% = #???? ??? #???? | | ?????????????????#! "" #! #?????????????? | | ?????????????????# # #?????????????? | | ?????????????????# ] #a #?????????????? | | ?????????????????######## g ########?????????????? | | ????????????????????????#= *#????????????????????? | | ????????????????????????# #????????????????????? | | ###########?????????????# / ???????????????????? | | #!![ #?????????????# # ??????????????????? | | #! #??????????#### # ?????????????????? | | #!! = #???????#### " #####????????????????? | | # #???????#"" ##+## ####???????????????? | | # """"" #??????##" ##??????????????? | | # """"" ########"" #######?????????? | | # """"" + " + #?????????? | | # ## ######" ##### #?????????? | | #####+###### ## * " " #?????????????? | | ??# ### # " " #?????????????? | +----------------------------------------------------+ Best States ------------- Heat Dissipation 31 Energy Generation 23 Energy Capacity 605 Matter Stores 300 Matter Capacity 300 Sight Range 20 Robot Scan Range 16 Terrain Scan Range 14 Terrain Scan Density 85 Armor Coverage 150 Resistance: KI 20 Evasion (%) 62 Targeting Accuracy 6 Recoil Reduction 2 Item Schematics ----------------- None Robot Schematics ------------------ None Fabricated ------------ Nothing Alien Tech Used ----------------- None Achievements -------------- None Challenges ------------ None Game ------ Seed MolecularDefenseMachine Manual? 0 Play Time 00:26:41 Cumulative 81.7 hours Start 2019.11.12 @ 02:06:24 End 2019.11.12 @ 02:35:07 Sessions 1 Manual Loads 0 Difficulty Rogue Special Mode None Game No. 90 Rogue 90 Adventurer 0 Explorer 0 Win Type - Total 0 Types 0/0/0/0/0/0/0 Lore% 15 Gallery% 33 Achievement% 19 Wizard Run 0 Options --------- ASCII 0 Keyboard 0 Movement Numpad Keybinds 0 Fullscreen 1 Font 16/Terminus Map View 76x50 Tactical HUD 1 Map Filters NONE Filters NONE Steam 1 RUN: 43222a1b-c753-4c3e-924c-0f2b6874e94f